[Event "*** Titled Tuesday Blitz"]
[Site "Chess.com"]
[Date "2021.03.16"]
[Round "6"]
[White "slavenok"]
[Black "Genghis_K"]
[Result "1-0"]
[WhiteElo "2745"]
[BlackElo "2878"]
[TimeControl "180+1"]
[EndTime "11:06:16 PDT"]
[Termination "slavenok won by checkmate"]

1. e4 {[%clk 0:03:00.9]} 1... c5 {[%clk 0:02:57.5]} 2. d4 {[%clk 0:03:01]} 2...
cxd4 {[%clk 0:02:57.5]} 3. Nf3 {[%clk 0:03:01.4]} 3... Nf6 {[%clk 0:02:47.5]} 4.
e5 {[%clk 0:02:59.1]} 4... Nd5 {[%clk 0:02:47.7]} 5. Bc4 {[%clk 0:02:58.1]} 5...
Nb6 {[%clk 0:02:45.9]} 6. Bb3 {[%clk 0:02:58.1]} 6... Nc6 {[%clk 0:02:45.4]} 7.
O-O {[%clk 0:02:57.8]} 7... d5 {[%clk 0:02:43.2]} 8. Nxd4 {[%clk 0:02:55.2]}
8... Nxe5 {[%clk 0:02:40.5]} 9. Re1 {[%clk 0:02:52.7]} 9... Nc6 {[%clk
0:02:40.2]} 10. Nc3 {[%clk 0:02:43.8]} 10... e6 {[%clk 0:02:37.5]} 11. Bf4
{[%clk 0:02:38.9]} 11... Bd6 {[%clk 0:02:31.6]} 12. Bxd6 {[%clk 0:02:36]} 12...
Qxd6 {[%clk 0:02:32.5]} 13. Nf5 {[%clk 0:02:32.9]} 13... Qf4 {[%clk 0:02:21.2]}
14. Nxg7+ {[%clk 0:02:29.9]} 14... Kf8 {[%clk 0:02:21.6]} 15. Nh5 {[%clk
0:02:29.1]} 15... Qg5 {[%clk 0:02:19.8]} 16. Ng3 {[%clk 0:02:26.6]} 16... Bd7
{[%clk 0:02:17.7]} 17. Qd3 {[%clk 0:02:16.1]} 17... h5 {[%clk 0:02:16.2]} 18.
Rf1 {[%clk 0:02:11.4]} 18... h4 {[%clk 0:02:14.9]} 19. f4 {[%clk 0:02:05]} 19...
Qg4 {[%clk 0:02:13.2]} 20. Nge2 {[%clk 0:02:02.8]} 20... Rg8 {[%clk 0:02:10.4]}
21. Rf2 {[%clk 0:02:00.7]} 21... Ne7 {[%clk 0:02:04.7]} 22. Raf1 {[%clk
0:01:55.8]} 22... Rc8 {[%clk 0:02:01.9]} 23. Nd4 {[%clk 0:01:52.2]} 23... Nc4
{[%clk 0:02:01.2]} 24. Bxc4 {[%clk 0:01:48]} 24... Rxc4 {[%clk 0:02:01.5]} 25.
h3 {[%clk 0:01:39.1]} 25... Qg3 {[%clk 0:01:57.6]} 26. Qd2 {[%clk 0:01:37]}
26... Qxh3 {[%clk 0:01:52.5]} 27. f5 {[%clk 0:01:34.8]} 27... e5 {[%clk
0:01:42.8]} 28. f6 {[%clk 0:01:32.8]} 28... Rxd4 {[%clk 0:01:28.8]} 29. fxe7+
{[%clk 0:01:30]} 29... Ke8 {[%clk 0:01:29.2]} 30. Qe2 {[%clk 0:01:21.5]} 30...
Qe6 {[%clk 0:01:09.7]} 31. Nb5 {[%clk 0:01:15.3]} 31... Bxb5 {[%clk 0:01:03.2]}
32. Qxb5+ {[%clk 0:01:16.2]} 32... Qd7 {[%clk 0:00:52.4]} 33. Qe2 {[%clk
0:01:16]} 33... Rdg4 {[%clk 0:00:16.5]} 34. Qxe5 {[%clk 0:01:13.2]} 34... Qxe7
{[%clk 0:00:11.8]} 35. Qb8+ {[%clk 0:01:10.6]} 35... Kd7 {[%clk 0:00:10.8]} 36.
Qxb7+ {[%clk 0:01:08.7]} 36... Kd6 {[%clk 0:00:11.3]} 37. Rf6+ {[%clk
0:01:03.9]} 37... Qxf6 {[%clk 0:00:05.8]} 38. Rxf6+ {[%clk 0:01:04.8]} 38... Ke5
{[%clk 0:00:06.5]} 39. Qe7+ {[%clk 0:01:01.7]} 39... Kd4 {[%clk 0:00:06.6]} 40.
Rf2 {[%clk 0:01:01.7]} 40... h3 {[%clk 0:00:06.6]} 41. Qb4+ {[%clk 0:01:01.4]}
41... Ke5 {[%clk 0:00:07]} 42. Qc3+ {[%clk 0:01:01.5]} 42... d4 {[%clk 0:00:04]}
43. Qxh3 {[%clk 0:01:01.5]} 43... Re4 {[%clk 0:00:04.2]} 44. Rf1 {[%clk
0:00:59.8]} 44... Rgg4 {[%clk 0:00:03.5]} 45. Qh5+ {[%clk 0:00:59.3]} 45... Ke6
{[%clk 0:00:04.1]} 46. Qxf7+ {[%clk 0:00:59]} 46... Kd6 {[%clk 0:00:04.8]} 47.
Qf6+ {[%clk 0:00:59.1]} 47... Kc5 {[%clk 0:00:05.3]} 48. Qf8+ {[%clk 0:00:58.6]}
48... Kd5 {[%clk 0:00:05.6]} 49. Qd8+ {[%clk 0:00:57.8]} 49... Kc5 {[%clk
0:00:05.5]} 50. Rf5+ {[%clk 0:00:57]} 50... Kc4 {[%clk 0:00:04.4]} 51. Qc7+
{[%clk 0:00:56.9]} 51... Kb4 {[%clk 0:00:04.4]} 52. Qc5+ {[%clk 0:00:56.9]}
52... Ka4 {[%clk 0:00:04.8]} 53. b3# {[%clk 0:00:56.9]} 1-0

[Event "*** Titled Tuesday Blitz"]
[Site "Chess.com"]
[Date "2021.03.16"]
[Round "6"]
[White "novocane"]
[Black "Kislov_Oleg"]
[Result "0-1"]
[WhiteElo "2253"]
[BlackElo "2445"]
[TimeControl "180+1"]
[EndTime "11:06:20 PDT"]
[Termination "Kislov_Oleg won on time"]

1. d4 {[%clk 0:02:59.7]} 1... Nf6 {[%clk 0:02:58.8]} 2. c4 {[%clk 0:02:59.8]}
2... e6 {[%clk 0:02:58.1]} 3. Nc3 {[%clk 0:02:59.8]} 3... d5 {[%clk 0:02:56.2]}
4. cxd5 {[%clk 0:02:59.6]} 4... exd5 {[%clk 0:02:55.9]} 5. Bg5 {[%clk
0:02:59.4]} 5... Be7 {[%clk 0:02:54.2]} 6. Qc2 {[%clk 0:02:59.4]} 6... O-O
{[%clk 0:02:51.7]} 7. e3 {[%clk 0:02:59.4]} 7... c6 {[%clk 0:02:50.1]} 8. Bd3
{[%clk 0:02:59.3]} 8... h6 {[%clk 0:02:48.4]} 9. h4 {[%clk 0:02:58.6]} 9... Re8
{[%clk 0:02:39.1]} 10. Nf3 {[%clk 0:02:55.6]} 10... Ne4 {[%clk 0:02:29.2]} 11.
Bf4 {[%clk 0:02:32.9]} 11... Bd6 {[%clk 0:02:13.9]} 12. Bxd6 {[%clk 0:02:21.4]}
12... Qxd6 {[%clk 0:02:12.5]} 13. Nxe4 {[%clk 0:01:54.7]} 13... dxe4 {[%clk
0:02:10.1]} 14. Bxe4 {[%clk 0:01:54.7]} 14... Qb4+ {[%clk 0:02:06.7]} 15. Nd2
{[%clk 0:01:48.2]} 15... Nd7 {[%clk 0:01:56.2]} 16. O-O {[%clk 0:01:36]} 16...
Nf6 {[%clk 0:01:53.7]} 17. Bd3 {[%clk 0:01:28.6]} 17... Ng4 {[%clk 0:01:48.6]}
18. Be2 {[%clk 0:01:17.4]} 18... Qe7 {[%clk 0:01:35.6]} 19. Nf3 {[%clk
0:01:04.2]} 19... Be6 {[%clk 0:01:25.9]} 20. Qc5 {[%clk 0:01:02.9]} 20... Qf6
{[%clk 0:01:21.6]} 21. e4 {[%clk 0:01:01.4]} 21... Rad8 {[%clk 0:01:07.3]} 22.
e5 {[%clk 0:00:48.9]} 22... Qf4 {[%clk 0:01:02.9]} 23. Qc1 {[%clk 0:00:43.2]}
23... Qf5 {[%clk 0:00:54.2]} 24. Bc4 {[%clk 0:00:38.4]} 24... c5 {[%clk
0:00:44.1]} 25. Bxe6 {[%clk 0:00:33.7]} 25... Rxe6 {[%clk 0:00:45]} 26. dxc5
{[%clk 0:00:26.6]} 26... Nxe5 {[%clk 0:00:39.1]} 27. Nxe5 {[%clk 0:00:25]} 27...
Rxe5 {[%clk 0:00:37.9]} 28. b4 {[%clk 0:00:24.9]} 28... Re2 {[%clk 0:00:36.8]}
29. Qb1 {[%clk 0:00:16.5]} 29... Qf4 {[%clk 0:00:32.5]} 30. g3 {[%clk
0:00:15.8]} 30... Qf6 {[%clk 0:00:30.9]} 31. Qb3 {[%clk 0:00:12.5]} 31... Rdd2
{[%clk 0:00:29.9]} 32. Qc4 {[%clk 0:00:04.2]} 32... Rxf2 {[%clk 0:00:28.1]} 33.
Qe4 {[%clk 0:00:01.2]} 33... Qb2 {[%clk 0:00:18.4]} 0-1

[Event "*** Titled Tuesday Blitz"]
[Site "Chess.com"]
[Date "2021.03.16"]
[Round "6"]
[White "Sharpchess22"]
[Black "KuzubovYuriy"]
[Result "1-0"]
[WhiteElo "2739"]
[BlackElo "2847"]
[TimeControl "180+1"]
[EndTime "11:06:23 PDT"]
[Termination "Sharpchess22 won on time"]

1. e4 {[%clk 0:03:00.9]} 1... c5 {[%clk 0:03:00.4]} 2. Nf3 {[%clk 0:03:00.1]}
2... Nc6 {[%clk 0:03:01]} 3. d4 {[%clk 0:02:58.5]} 3... cxd4 {[%clk 0:03:01.9]}
4. Nxd4 {[%clk 0:02:58.8]} 4... g6 {[%clk 0:03:02.7]} 5. c4 {[%clk 0:02:57.5]}
5... Nf6 {[%clk 0:03:02.2]} 6. Nc3 {[%clk 0:02:56.9]} 6... d6 {[%clk 0:03:02.3]}
7. Be2 {[%clk 0:02:54.5]} 7... Bg7 {[%clk 0:03:00.8]} 8. Be3 {[%clk 0:02:53.7]}
8... O-O {[%clk 0:03:00.5]} 9. O-O {[%clk 0:02:52.8]} 9... Bd7 {[%clk
0:03:00.9]} 10. h3 {[%clk 0:02:51.2]} 10... a5 {[%clk 0:02:59.5]} 11. Qc2 {[%clk
0:02:30.8]} 11... Rc8 {[%clk 0:02:54.8]} 12. Rad1 {[%clk 0:02:27.2]} 12... Nb4
{[%clk 0:02:34.8]} 13. Qb1 {[%clk 0:02:26.2]} 13... a4 {[%clk 0:02:31.8]} 14.
Ndb5 {[%clk 0:02:01.1]} 14... Qa5 {[%clk 0:02:22.2]} 15. Bd2 {[%clk 0:02:00.8]}
15... Qa8 {[%clk 0:02:20.1]} 16. Rfe1 {[%clk 0:01:55.7]} 16... Nc6 {[%clk
0:02:06.2]} 17. Be3 {[%clk 0:01:34.2]} 17... Ne5 {[%clk 0:01:59.1]} 18. Na3
{[%clk 0:01:33.9]} 18... Be6 {[%clk 0:01:56.3]} 19. Nd5 {[%clk 0:01:33.9]} 19...
Bxd5 {[%clk 0:01:37.3]} 20. exd5 {[%clk 0:01:33.9]} 20... Qa5 {[%clk 0:01:33.5]}
21. Bd4 {[%clk 0:01:22.3]} 21... Ned7 {[%clk 0:01:22.3]} 22. Bf1 {[%clk
0:01:22.2]} 22... Rfe8 {[%clk 0:01:22]} 23. Bc3 {[%clk 0:01:17.6]} 23... Qa8
{[%clk 0:01:18.2]} 24. Nb5 {[%clk 0:01:14.7]} 24... Nc5 {[%clk 0:01:06.5]} 25.
Qc2 {[%clk 0:01:11.4]} 25... Qa6 {[%clk 0:00:53.9]} 26. Re3 {[%clk 0:01:10.3]}
26... Ncd7 {[%clk 0:00:39.6]} 27. Rde1 {[%clk 0:01:07.7]} 27... Ne5 {[%clk
0:00:31.9]} 28. Bxe5 {[%clk 0:00:49]} 28... dxe5 {[%clk 0:00:30.8]} 29. Nc3
{[%clk 0:00:49.2]} 29... a3 {[%clk 0:00:23.2]} 30. b4 {[%clk 0:00:47.3]} 30...
e4 {[%clk 0:00:13.2]} 31. Qb3 {[%clk 0:00:46.6]} 31... e6 {[%clk 0:00:13.3]} 32.
c5 {[%clk 0:00:44.8]} 32... Qa8 {[%clk 0:00:09.3]} 33. d6 {[%clk 0:00:45.2]}
33... b6 {[%clk 0:00:08.8]} 34. Nxe4 {[%clk 0:00:44.3]} 34... Nxe4 {[%clk
0:00:08.4]} 35. d7 {[%clk 0:00:40.8]} 35... Nf6 {[%clk 0:00:08.1]} 36. dxe8=Q+
{[%clk 0:00:40.2]} 36... Rxe8 {[%clk 0:00:07.9]} 37. cxb6 {[%clk 0:00:40.6]}
37... Nd5 {[%clk 0:00:08.2]} 38. Rd3 {[%clk 0:00:40.1]} 38... Nxb6 {[%clk
0:00:08.6]} 39. Qxa3 {[%clk 0:00:39]} 39... Qb8 {[%clk 0:00:09]} 40. b5 {[%clk
0:00:38.4]} 40... Rc8 {[%clk 0:00:08]} 41. Qb3 {[%clk 0:00:38.2]} 41... Bf6
{[%clk 0:00:07.6]} 42. a4 {[%clk 0:00:37.9]} 42... Qa7 {[%clk 0:00:05.3]} 43.
Re4 {[%clk 0:00:36.7]} 43... Rc1 {[%clk 0:00:02.4]} 44. Rd1 {[%clk 0:00:36.7]}
44... Rc3 {[%clk 0:00:01.1]} 45. Qb4 {[%clk 0:00:35.1]} 45... Nd5 {[%clk
0:00:01.4]} 46. Rxd5 {[%clk 0:00:34.7]} 1-0

[Event "*** Titled Tuesday Blitz"]
[Site "Chess.com"]
[Date "2021.03.16"]
[Round "6"]
[White "HrvojeZagreb"]
[Black "WilliamSchill"]
[Result "0-1"]
[WhiteElo "2284"]
[BlackElo "2151"]
[TimeControl "180+1"]
[EndTime "11:06:27 PDT"]
[Termination "WilliamSchill won by resignation"]

1. d4 {[%clk 0:03:00.9]} 1... Nf6 {[%clk 0:02:59.4]} 2. Bf4 {[%clk 0:03:00.7]}
2... g6 {[%clk 0:02:59]} 3. Nc3 {[%clk 0:02:59.9]} 3... d5 {[%clk 0:02:57.6]} 4.
e3 {[%clk 0:02:59.9]} 4... a6 {[%clk 0:02:57]} 5. h4 {[%clk 0:02:58.5]} 5... h5
{[%clk 0:02:55.9]} 6. Nf3 {[%clk 0:02:57.6]} 6... Bg7 {[%clk 0:02:56]} 7. Ne5
{[%clk 0:02:57.1]} 7... Nbd7 {[%clk 0:02:44.1]} 8. Be2 {[%clk 0:02:56.2]} 8...
c6 {[%clk 0:02:44.2]} 9. f3 {[%clk 0:02:52.6]} 9... Nxe5 {[%clk 0:02:42.1]} 10.
Bxe5 {[%clk 0:02:51]} 10... Qb6 {[%clk 0:02:21.5]} 11. Na4 {[%clk 0:02:35.2]}
11... Qa5+ {[%clk 0:02:17]} 12. c3 {[%clk 0:02:35.1]} 12... O-O {[%clk
0:02:01.1]} 13. b4 {[%clk 0:02:27.4]} 13... Qd8 {[%clk 0:01:58]} 14. g4 {[%clk
0:02:26.5]} 14... Be6 {[%clk 0:01:26.6]} 15. Nc5 {[%clk 0:02:18.2]} 15... Qc8
{[%clk 0:01:18.7]} 16. Bxf6 {[%clk 0:02:10.9]} 16... Bxf6 {[%clk 0:01:18.3]} 17.
gxh5 {[%clk 0:02:11.1]} 17... gxh5 {[%clk 0:01:18.4]} 18. f4 {[%clk 0:02:00.7]}
18... b6 {[%clk 0:01:16.1]} 19. Nd3 {[%clk 0:01:55.1]} 19... Bg4 {[%clk
0:01:04.5]} 20. Rg1 {[%clk 0:01:46.2]} 20... Bxh4+ {[%clk 0:01:03.9]} 21. Kd2
{[%clk 0:01:46.2]} 21... f5 {[%clk 0:01:03.1]} 22. Ne5 {[%clk 0:01:45.5]} 22...
Bf6 {[%clk 0:01:00.2]} 23. Bxg4 {[%clk 0:01:39.1]} 23... hxg4 {[%clk 0:00:55.4]}
24. Qc2 {[%clk 0:01:33.2]} 24... Bxe5 {[%clk 0:00:49.5]} 25. dxe5 {[%clk
0:01:30.3]} 25... Kg7 {[%clk 0:00:43.4]} 26. c4 {[%clk 0:01:22.4]} 26... e6
{[%clk 0:00:39.8]} 27. cxd5 {[%clk 0:00:51.7]} 27... cxd5 {[%clk 0:00:39.1]} 28.
Qb3 {[%clk 0:00:36.1]} 28... Qc4 {[%clk 0:00:31.1]} 29. Qxc4 {[%clk 0:00:31.7]}
29... dxc4 {[%clk 0:00:30.8]} 30. a4 {[%clk 0:00:27.4]} 30... b5 {[%clk
0:00:30]} 31. Kc3 {[%clk 0:00:24.4]} 31... Rfd8 {[%clk 0:00:28.9]} 32. axb5
{[%clk 0:00:24.4]} 32... axb5 {[%clk 0:00:26.4]} 33. Rxa8 {[%clk 0:00:25.3]}
33... Rxa8 {[%clk 0:00:25.9]} 34. Rd1 {[%clk 0:00:23.1]} 34... Ra3+ {[%clk
0:00:22.9]} 35. Kd4 {[%clk 0:00:22.4]} 35... Rb3 {[%clk 0:00:19.6]} 36. Kc5
{[%clk 0:00:20.7]} 36... c3 {[%clk 0:00:19.7]} 37. Kxb5 {[%clk 0:00:19.6]} 37...
c2 {[%clk 0:00:19.7]} 38. Rc1 {[%clk 0:00:19.9]} 38... Rxe3 {[%clk 0:00:17.1]}
39. Rxc2 {[%clk 0:00:20.1]} 39... Rf3 {[%clk 0:00:12.6]} 40. Rc4 {[%clk
0:00:17.8]} 40... g3 {[%clk 0:00:12]} 41. Rc1 {[%clk 0:00:17]} 41... Rxf4 {[%clk
0:00:11.2]} 42. Rg1 {[%clk 0:00:17.1]} 42... Rg4 {[%clk 0:00:10.9]} 43. Kc5
{[%clk 0:00:17.7]} 43... f4 {[%clk 0:00:11.3]} 44. b5 {[%clk 0:00:16.9]} 44...
f3 {[%clk 0:00:11.6]} 45. b6 {[%clk 0:00:16.6]} 45... f2 {[%clk 0:00:12]} 46. b7
{[%clk 0:00:15.6]} 46... fxg1=Q+ {[%clk 0:00:11]} 0-1

[Event "*** Titled Tuesday Blitz"]
[Site "Chess.com"]
[Date "2021.03.16"]
[Round "6"]
[White "DanilovVladimir"]
[Black "bricolageur"]
[Result "1/2-1/2"]
[WhiteElo "2423"]
[BlackElo "2269"]
[TimeControl "180+1"]
[EndTime "11:06:32 PDT"]
[Termination "Game drawn by repetition"]

1. d4 {[%clk 0:03:00.9]} 1... Nf6 {[%clk 0:03:00]} 2. Bg5 {[%clk 0:02:59.6]}
2... d5 {[%clk 0:02:59.9]} 3. Bxf6 {[%clk 0:02:59.6]} 3... gxf6 {[%clk
0:03:00.8]} 4. g3 {[%clk 0:03:00.1]} 4... e5 {[%clk 0:03:00.7]} 5. Bg2 {[%clk
0:02:51.5]} 5... Be6 {[%clk 0:02:48.6]} 6. e3 {[%clk 0:02:35.5]} 6... c5 {[%clk
0:02:47.3]} 7. Ne2 {[%clk 0:02:32.3]} 7... Nc6 {[%clk 0:02:46.7]} 8. O-O {[%clk
0:02:24.7]} 8... Qd7 {[%clk 0:02:44]} 9. c4 {[%clk 0:02:21]} 9... cxd4 {[%clk
0:02:41.6]} 10. exd4 {[%clk 0:02:18.9]} 10... exd4 {[%clk 0:01:19]} 11. Nxd4
{[%clk 0:02:08.7]} 11... Nxd4 {[%clk 0:01:16.9]} 12. Qxd4 {[%clk 0:02:03.3]}
12... dxc4 {[%clk 0:01:16.3]} 13. Qxf6 {[%clk 0:02:03.2]} 13... Rg8 {[%clk
0:01:16.2]} 14. Nc3 {[%clk 0:01:56.3]} 14... Bg7 {[%clk 0:00:59.5]} 15. Qf3
{[%clk 0:01:55.9]} 15... O-O-O {[%clk 0:00:37.4]} 16. Rad1 {[%clk 0:01:49.2]}
16... Qe7 {[%clk 0:00:36.1]} 17. Nb5 {[%clk 0:01:46.4]} 17... a6 {[%clk
0:00:25.2]} 18. Nc3 {[%clk 0:01:27.2]} 18... Rd4 {[%clk 0:00:18.5]} 19. Rxd4
{[%clk 0:01:16.3]} 19... Bxd4 {[%clk 0:00:19.4]} 20. Nd5 {[%clk 0:01:02.5]}
20... Qd6 {[%clk 0:00:08.4]} 21. Nf4 {[%clk 0:00:43.8]} 21... Qb6 {[%clk
0:00:07.4]} 22. Nxe6 {[%clk 0:00:21.2]} 22... fxe6 {[%clk 0:00:08.3]} 23. Qf7
{[%clk 0:00:21.7]} 23... Rd8 {[%clk 0:00:07.7]} 24. Qxh7 {[%clk 0:00:20.6]}
24... Qxb2 {[%clk 0:00:07.3]} 25. Rb1 {[%clk 0:00:19.5]} 25... Qxf2+ {[%clk
0:00:02.8]} 26. Kh1 {[%clk 0:00:19.8]} 26... Rd7 {[%clk 0:00:03.7]} 27. Qg8+
{[%clk 0:00:15.2]} 27... Kc7 {[%clk 0:00:03.8]} 28. Rxb7+ {[%clk 0:00:15.7]}
28... Kd6 {[%clk 0:00:04.3]} 29. Qb8+ {[%clk 0:00:13.8]} 29... Ke7 {[%clk
0:00:04.4]} 30. Rxd7+ {[%clk 0:00:07.3]} 30... Kxd7 {[%clk 0:00:05.3]} 31. Qb7+
{[%clk 0:00:07.5]} 31... Kd6 {[%clk 0:00:05.8]} 32. Qc6+ {[%clk 0:00:07.3]}
32... Ke7 {[%clk 0:00:06.2]} 33. Qc7+ {[%clk 0:00:03]} 33... Kf6 {[%clk
0:00:06.7]} 34. Qd8+ {[%clk 0:00:03.4]} 34... Ke5 {[%clk 0:00:06.7]} 35. Qc7+
{[%clk 0:00:03.4]} 35... Kf6 {[%clk 0:00:07.1]} 36. Qd8+ {[%clk 0:00:03.9]}
36... Kg6 {[%clk 0:00:07.7]} 37. Qg8+ {[%clk 0:00:04]} 37... Kf6 {[%clk
0:00:08.2]} 38. Qf8+ {[%clk 0:00:04.1]} 38... Kg5 {[%clk 0:00:08.4]} 39. Qg8+
{[%clk 0:00:03.8]} 39... Kf6 {[%clk 0:00:08.5]} 40. Qf8+ {[%clk 0:00:04]} 40...
Ke5 {[%clk 0:00:09]} 41. Qb8+ {[%clk 0:00:03.1]} 41... Kf6 {[%clk 0:00:08.9]}
42. Qf8+ {[%clk 0:00:03.2]} 1/2-1/2

[Event "*** Titled Tuesday Blitz"]
[Site "Chess.com"]
[Date "2021.03.16"]
[Round "6"]
[White "iturrizaga"]
[Black "anon102030"]
[Result "1-0"]
[WhiteElo "2848"]
[BlackElo "2703"]
[TimeControl "180+1"]
[EndTime "11:06:33 PDT"]
[Termination "iturrizaga won on time"]

1. d4 {[%clk 0:02:59.8]} 1... Nf6 {[%clk 0:02:58.7]} 2. c4 {[%clk 0:03:00.2]}
2... e5 {[%clk 0:02:58.9]} 3. d5 {[%clk 0:02:56.8]} 3... Bc5 {[%clk 0:02:58.3]}
4. Nc3 {[%clk 0:02:56.8]} 4... d6 {[%clk 0:02:58.1]} 5. h3 {[%clk 0:02:55.6]}
5... O-O {[%clk 0:02:57.1]} 6. e4 {[%clk 0:02:55.8]} 6... Ne8 {[%clk 0:02:54.6]}
7. g4 {[%clk 0:02:54.7]} 7... Qh4 {[%clk 0:02:47.5]} 8. Qe2 {[%clk 0:02:50.8]}
8... Qe7 {[%clk 0:02:38.9]} 9. Nf3 {[%clk 0:02:47.8]} 9... g6 {[%clk 0:02:37]}
10. Bh6 {[%clk 0:02:46.4]} 10... Ng7 {[%clk 0:02:37.4]} 11. O-O-O {[%clk
0:02:43.6]} 11... a6 {[%clk 0:02:36.4]} 12. Ne1 {[%clk 0:01:59.2]} 12... b5
{[%clk 0:02:26.1]} 13. Nd3 {[%clk 0:01:58.5]} 13... Bd4 {[%clk 0:02:23.6]} 14.
h4 {[%clk 0:01:51.1]} 14... bxc4 {[%clk 0:02:17.5]} 15. Ne1 {[%clk 0:01:51.1]}
15... Nd7 {[%clk 0:02:03.9]} 16. h5 {[%clk 0:01:49.3]} 16... g5 {[%clk
0:02:00.5]} 17. Nf3 {[%clk 0:01:47.5]} 17... Bxc3 {[%clk 0:01:53.2]} 18. bxc3
{[%clk 0:01:29.7]} 18... f6 {[%clk 0:01:52.9]} 19. Nd2 {[%clk 0:01:21.7]} 19...
Nb6 {[%clk 0:01:45]} 20. f3 {[%clk 0:01:17.3]} 20... Qd7 {[%clk 0:01:29.8]} 21.
Nxc4 {[%clk 0:01:16.3]} 21... Qa4 {[%clk 0:01:28.2]} 22. Nxb6 {[%clk 0:01:16.5]}
22... cxb6 {[%clk 0:01:22.1]} 23. Qc4 {[%clk 0:01:15.6]} 23... Qa3+ {[%clk
0:01:19.8]} 24. Kb1 {[%clk 0:01:15.2]} 24... Bd7 {[%clk 0:01:16.8]} 25. Qb4
{[%clk 0:01:07]} 25... Qxb4+ {[%clk 0:00:58.6]} 26. cxb4 {[%clk 0:01:07.9]}
26... Rfc8 {[%clk 0:00:59]} 27. Bd3 {[%clk 0:01:01.8]} 27... Rc3 {[%clk
0:00:55.5]} 28. Kb2 {[%clk 0:01:00.5]} 28... Rac8 {[%clk 0:00:35.6]} 29. Bxa6
{[%clk 0:01:00.8]} 29... Rc2+ {[%clk 0:00:35.9]} 30. Kb1 {[%clk 0:01:01.3]}
30... R8c3 {[%clk 0:00:35.3]} 31. Rc1 {[%clk 0:00:54.7]} 31... Rxc1+ {[%clk
0:00:33.3]} 32. Rxc1 {[%clk 0:00:55.6]} 32... Rxf3 {[%clk 0:00:13.9]} 33. Bxg7
{[%clk 0:00:54.2]} 33... Bxg4 {[%clk 0:00:12.7]} 34. h6 {[%clk 0:00:53.8]} 34...
Rf4 {[%clk 0:00:09.6]} 35. Bd3 {[%clk 0:00:23.6]} 35... Bf3 {[%clk 0:00:09.5]}
36. Rc6 {[%clk 0:00:19.5]} 36... g4 {[%clk 0:00:07.1]} 37. Rxb6 {[%clk
0:00:11.3]} 37... g3 {[%clk 0:00:06.6]} 38. Rc6 {[%clk 0:00:11.6]} 38... g2
{[%clk 0:00:04.6]} 39. Rc1 {[%clk 0:00:12.1]} 1-0

[Event "*** Titled Tuesday Blitz"]
[Site "Chess.com"]
[Date "2021.03.16"]
[Round "6"]
[White "tylityli"]
[Black "ukchessbomber"]
[Result "0-1"]
[WhiteElo "2289"]
[BlackElo "2521"]
[TimeControl "180+1"]
[EndTime "11:06:38 PDT"]
[Termination "ukchessbomber won on time"]

1. d4 {[%clk 0:02:59.4]} 1... g6 {[%clk 0:03:00.9]} 2. c4 {[%clk 0:02:56.9]}
2... Bg7 {[%clk 0:03:01.2]} 3. e4 {[%clk 0:02:57.1]} 3... d5 {[%clk 0:02:59.2]}
4. cxd5 {[%clk 0:02:56]} 4... c6 {[%clk 0:02:59.2]} 5. Nc3 {[%clk 0:02:54.2]}
5... cxd5 {[%clk 0:02:58.8]} 6. Nxd5 {[%clk 0:02:53.3]} 6... Nc6 {[%clk
0:02:55.4]} 7. Be3 {[%clk 0:02:51.1]} 7... e6 {[%clk 0:02:55.3]} 8. Nc3 {[%clk
0:02:48.6]} 8... Bxd4 {[%clk 0:02:55.7]} 9. Bxd4 {[%clk 0:02:47.5]} 9... Qxd4
{[%clk 0:02:56.6]} 10. Qxd4 {[%clk 0:02:46.1]} 10... Nxd4 {[%clk 0:02:57.5]} 11.
O-O-O {[%clk 0:02:46.6]} 11... e5 {[%clk 0:02:53.8]} 12. Nd5 {[%clk 0:02:45.4]}
12... Rb8 {[%clk 0:02:45.4]} 13. Nf3 {[%clk 0:02:36.5]} 13... Bg4 {[%clk
0:02:44.7]} 14. Rxd4 {[%clk 0:02:03.5]} 14... exd4 {[%clk 0:02:39.2]} 15. Nxd4
{[%clk 0:02:04.4]} 15... Rc8+ {[%clk 0:02:22.2]} 16. Kd2 {[%clk 0:02:02]} 16...
a6 {[%clk 0:02:20.8]} 17. Bd3 {[%clk 0:01:46.4]} 17... Be6 {[%clk 0:02:19]} 18.
Nb6 {[%clk 0:01:44.6]} 18... Rd8 {[%clk 0:02:18.8]} 19. Ke3 {[%clk 0:01:39.1]}
19... Ne7 {[%clk 0:02:13.2]} 20. f4 {[%clk 0:01:37.5]} 20... Rd6 {[%clk
0:02:01.5]} 21. Nc4 {[%clk 0:01:29.6]} 21... Bxc4 {[%clk 0:02:00]} 22. Bxc4
{[%clk 0:01:30.5]} 22... O-O {[%clk 0:02:00.8]} 23. e5 {[%clk 0:01:26.3]} 23...
Rb6 {[%clk 0:02:00.9]} 24. b3 {[%clk 0:01:23.1]} 24... Nc6 {[%clk 0:02:00.8]}
25. Rd1 {[%clk 0:01:11.2]} 25... Rd8 {[%clk 0:01:32.6]} 26. g4 {[%clk
0:00:47.6]} 26... Nxd4 {[%clk 0:01:24]} 27. Rxd4 {[%clk 0:00:48.5]} 27... Rxd4
{[%clk 0:01:24.8]} 28. Kxd4 {[%clk 0:00:48.6]} 28... Kf8 {[%clk 0:01:25.3]} 29.
a3 {[%clk 0:00:37.6]} 29... Rc6 {[%clk 0:01:18]} 30. Bd5 {[%clk 0:00:30.7]}
30... Rc7 {[%clk 0:01:16.7]} 31. f5 {[%clk 0:00:29.4]} 31... Ke7 {[%clk
0:00:54.3]} 32. h4 {[%clk 0:00:24]} 32... gxf5 {[%clk 0:00:50.7]} 33. gxf5
{[%clk 0:00:23.8]} 33... f6 {[%clk 0:00:51.3]} 34. b4 {[%clk 0:00:19.9]} 34...
b6 {[%clk 0:00:38.1]} 35. h5 {[%clk 0:00:19]} 35... h6 {[%clk 0:00:37.4]} 36.
Be6 {[%clk 0:00:14.6]} 36... Rc1 {[%clk 0:00:31.6]} 37. exf6+ {[%clk 0:00:10.7]}
37... Kxf6 {[%clk 0:00:31.2]} 38. Kd5 {[%clk 0:00:10.7]} 38... Rc3 {[%clk
0:00:30.8]} 39. a4 {[%clk 0:00:06.5]} 39... a5 {[%clk 0:00:26.3]} 40. bxa5
{[%clk 0:00:04.6]} 40... Rc5+ {[%clk 0:00:26.6]} 41. Kd6 {[%clk 0:00:03.9]}
41... Rxa5 {[%clk 0:00:27.5]} 42. Kc7 {[%clk 0:00:03.3]} 42... Rxa4 {[%clk
0:00:26.4]} 43. Kxb6 {[%clk 0:00:03.5]} 43... Rh4 {[%clk 0:00:27.3]} 44. Kc5
{[%clk 0:00:02.2]} 44... Rxh5 {[%clk 0:00:27.3]} 45. Kd4 {[%clk 0:00:02.6]}
45... Rg5 {[%clk 0:00:24.9]} 46. Ke3 {[%clk 0:00:02.3]} 46... h5 {[%clk
0:00:25]} 47. Kf4 {[%clk 0:00:01.8]} 47... h4 {[%clk 0:00:25.5]} 0-1